[Event "Titled Tuesday Blitz January 03 Early 2023"]
[White "Jiganchine, Roman"]
[Black "Fajdetic, Hrvoje"]
[WhiteFideId "2603667"]
[BlackFideId "14501945"]
[WhiteElo "2205"]
[BlackElo "2151"]
[Result "1-0"]
[Round "04"]
[TimeControl "180+2"]
[Date "2023.01.03"]
[WhiteClock "0:00:06"]
[BlackClock "0:00:03"]

1. e4 {[%clk 0:02:59]}  e6 {[%clk 0:02:56]} 2. d4 {[%clk 0:02:59]}  d5 {[%clk 0:02:56]} 3. Nd2 {[%clk 0:02:58]}  dxe4 {[%clk 0:02:57]} 4. Nxe4 {[%clk 0:02:58]}  Nd7 {[%clk 0:02:57]} 5. Nf3 {[%clk 0:02:54]}  Ngf6 {[%clk 0:02:58]} 6. Ng3 {[%clk 0:02:52]}  Bd6 {[%clk 0:02:57]} 7. Bd3 {[%clk 0:02:51]}  b6 {[%clk 0:02:55]} 8. O-O {[%clk 0:02:50]}  Bb7 {[%clk 0:02:55]} 9. Qe2 {[%clk 0:02:48]}  O-O {[%clk 0:02:55]} 10. b3 {[%clk 0:02:47]}  c5 {[%clk 0:02:55]} 11. Bb2 {[%clk 0:02:46]}  Qc7 {[%clk 0:02:55]} 12. Rad1 {[%clk 0:02:40]}  a5 {[%clk 0:02:54]} 13. Rfe1 {[%clk 0:02:37]}  a4 {[%clk 0:02:54]} 14. Ne5 {[%clk 0:02:26]}  axb3 {[%clk 0:02:51]} 15. axb3 {[%clk 0:02:25]}  Ra2 {[%clk 0:02:51]} 16. Bc3 {[%clk 0:02:12]}  cxd4 {[%clk 0:02:48]} 17. Bxd4 {[%clk 0:02:11]}  Nxe5 {[%clk 0:02:48]} 18. Bxe5 {[%clk 0:02:10]}  Bxe5 {[%clk 0:02:48]} 19. Qxe5 {[%clk 0:02:10]}  Qxe5 {[%clk 0:02:48]} 20. Rxe5 {[%clk 0:02:10]}  Nd5 {[%clk 0:02:34]} 21. Ree1 {[%clk 0:01:31]}  Nb4 {[%clk 0:02:27]} 22. Ra1 {[%clk 0:01:25]}  Nxd3 {[%clk 0:02:23]} 23. cxd3 {[%clk 0:01:22]}  Rfa8 {[%clk 0:02:22]} 24. Rac1 {[%clk 0:01:13]}  Bd5 {[%clk 0:02:15]} 25. b4 {[%clk 0:01:09]}  g6 {[%clk 0:02:11]} 26. h4 {[%clk 0:01:09]}  Rb2 {[%clk 0:02:02]} 27. h5 {[%clk 0:01:07]}  Rxb4 {[%clk 0:01:54]} 28. Rc7 {[%clk 0:01:04]}  Rd4 {[%clk 0:01:33]} 29. Rec1 {[%clk 0:00:59]}  Kg7 {[%clk 0:01:29]} 30. h6+ {[%clk 0:00:45]}  Kf6 {[%clk 0:01:25]} 31. Nf1 {[%clk 0:00:19]}  Rh4 {[%clk 0:01:09]} 32. Ne3 {[%clk 0:00:18]}  Rd4 {[%clk 0:00:29]} 33. f3 {[%clk 0:00:18]}  e5 {[%clk 0:00:23]} 34. Ng4+ {[%clk 0:00:18]}  Kg5 {[%clk 0:00:20]} 35. Nxe5 {[%clk 0:00:16]}  Kxh6 {[%clk 0:00:19]} 36. Nxf7+ {[%clk 0:00:15]}  Bxf7 {[%clk 0:00:19]} 37. Rxf7 {[%clk 0:00:16]}  Rxd3 {[%clk 0:00:19]} 38. Rcc7 {[%clk 0:00:15]}  Rh8 {[%clk 0:00:19]} 39. Rf4 {[%clk 0:00:15]}  Rb3 {[%clk 0:00:17]} 40. Rh4+ {[%clk 0:00:15]}  Kg5 {[%clk 0:00:17]} 41. Rhxh7 {[%clk 0:00:14]}  Rxh7 {[%clk 0:00:17]} 42. Rxh7 {[%clk 0:00:14]}  Kf4 {[%clk 0:00:14]} 43. Rh4+ {[%clk 0:00:13]}  Kg5 {[%clk 0:00:14]} 44. Rg4+ {[%clk 0:00:13]}  Kf6 {[%clk 0:00:14]} 45. Kh2 {[%clk 0:00:13]}  b5 {[%clk 0:00:14]} 46. Kg3 {[%clk 0:00:13]}  b4 {[%clk 0:00:14]} 47. Rf4+ {[%clk 0:00:13]}  Kg5 {[%clk 0:00:13]} 48. Rg4+ {[%clk 0:00:14]}  Kf6 {[%clk 0:00:14]} 49. Rf4+ {[%clk 0:00:14]}  Kg7 {[%clk 0:00:13]} 50. Rc4 {[%clk 0:00:13]}  Rb2 {[%clk 0:00:13]} 51. Rc7+ {[%clk 0:00:13]}  Kf6 {[%clk 0:00:13]} 52. Rc6+ {[%clk 0:00:13]}  Kg5 {[%clk 0:00:14]} 53. Rc5+ {[%clk 0:00:13]}  Kh6 {[%clk 0:00:14]} 54. Rb5 {[%clk 0:00:12]}  g5 {[%clk 0:00:11]} 55. Rb6+ {[%clk 0:00:11]}  Kh5 {[%clk 0:00:11]} 56. Kh3 {[%clk 0:00:11]}  g4+ {[%clk 0:00:09]} 57. fxg4+ {[%clk 0:00:11]}  Kg5 {[%clk 0:00:10]} 58. Rb5+ {[%clk 0:00:10]}  Kg6 {[%clk 0:00:10]} 59. Kg3 {[%clk 0:00:10]}  Rb3+ {[%clk 0:00:08]} 60. Kh4 {[%clk 0:00:10]}  Rb2 {[%clk 0:00:08]} 61. Rb6+ {[%clk 0:00:09]}  Kg7 {[%clk 0:00:08]} 62. g3 {[%clk 0:00:09]}  b3 {[%clk 0:00:09]} 63. Kg5 {[%clk 0:00:09]}  Rb1 {[%clk 0:00:08]} 64. Rb7+ {[%clk 0:00:08]}  Kf8 {[%clk 0:00:09]} 65. Kg6 {[%clk 0:00:08]}  b2 {[%clk 0:00:09]} 66. g5 {[%clk 0:00:08]}  Rg1 {[%clk 0:00:08]} 67. Rxb2 {[%clk 0:00:07]}  Rxg3 {[%clk 0:00:09]} 68. Rb8+ {[%clk 0:00:06]}  Ke7 {[%clk 0:00:09]} 69. Rb7+ {[%clk 0:00:05]}  Kf8 {[%clk 0:00:09]} 70. Kf6 {[%clk 0:00:04]}  Rf3+ {[%clk 0:00:09]} 71. Kg6 {[%clk 0:00:04]}  Rc3 {[%clk 0:00:09]} 72. Rb8+ {[%clk 0:00:04]}  Ke7 {[%clk 0:00:08]} 73. Kg7 {[%clk 0:00:04]}  Rh3 {[%clk 0:00:05]} 74. g6 {[%clk 0:00:04]}  Rh2 {[%clk 0:00:05]} 75. Rb7+ {[%clk 0:00:05]}  Ke8 {[%clk 0:00:05]} 76. Rb1 {[%clk 0:00:04]}  Ke7 {[%clk 0:00:05]} 77. Re1+ {[%clk 0:00:04]}  Kd8 {[%clk 0:00:04]} 78. Kf7 {[%clk 0:00:05]}  Rf2+ {[%clk 0:00:05]} 79. Kg8 {[%clk 0:00:05]}  Rg2 {[%clk 0:00:04]} 80. g7 {[%clk 0:00:05]}  Kd7 {[%clk 0:00:04]} 81. Re4 {[%clk 0:00:05]}  Rh2 {[%clk 0:00:03]} 82. Kf7 {[%clk 0:00:05]}  Rf2+ {[%clk 0:00:03]} 83. Kg6 {[%clk 0:00:05]}  Rg2+ {[%clk 0:00:04]} 84. Kf6 {[%clk 0:00:05]}  Rf2+ {[%clk 0:00:04]} 85. Kg5 {[%clk 0:00:05]}  Rg2+ {[%clk 0:00:03]} 86. Rg4 {[%clk 0:00:05]}  Rxg4+ {[%clk 0:00:03]} 87. Kxg4 {[%clk 0:00:06]} 1-0


[Site "https://www.chess.com"]

[Event "Titled Tuesday Blitz January 03 Early 2023"]
[White "Schut, Han"]
[Black "Murzin, Volodar"]
[WhiteFideId "1005561"]
[BlackFideId "44155573"]
[WhiteElo "2101"]
[BlackElo "2604"]
[Result "0-1"]
[Round "04"]
[TimeControl "180+2"]
[Date "2023.01.03"]
[WhiteClock "0:00:07"]
[BlackClock "0:01:36"]

1. e4 {[%clk 0:03:00]}  c6 {[%clk 0:02:40]} 2. d4 {[%clk 0:02:59]}  d5 {[%clk 0:02:41]} 3. e5 {[%clk 0:02:59]}  Bf5 {[%clk 0:02:39]} 4. Nf3 {[%clk 0:03:00]}  e6 {[%clk 0:02:39]} 5. Be2 {[%clk 0:03:00]}  Ne7 {[%clk 0:02:37]} 6. O-O {[%clk 0:02:54]}  h6 {[%clk 0:02:38]} 7. c3 {[%clk 0:02:49]}  Nd7 {[%clk 0:02:36]} 8. Nbd2 {[%clk 0:02:49]}  a6 {[%clk 0:02:35]} 9. Re1 {[%clk 0:02:50]}  Rc8 {[%clk 0:02:36]} 10. Nf1 {[%clk 0:02:49]}  Bh7 {[%clk 0:02:37]} 11. Ng3 {[%clk 0:02:48]}  c5 {[%clk 0:02:37]} 12. Be3 {[%clk 0:02:46]}  Nc6 {[%clk 0:02:37]} 13. a3 {[%clk 0:02:40]}  Be7 {[%clk 0:02:31]} 14. b4 {[%clk 0:02:31]}  cxd4 {[%clk 0:02:30]} 15. cxd4 {[%clk 0:02:30]}  O-O {[%clk 0:02:30]} 16. Qd2 {[%clk 0:02:24]}  Nb6 {[%clk 0:02:26]} 17. Rec1 {[%clk 0:02:14]}  Re8 {[%clk 0:02:25]} 18. Nh5 {[%clk 0:02:03]}  Bg6 {[%clk 0:02:24]} 19. Nf4 {[%clk 0:02:02]}  Be4 {[%clk 0:02:24]} 20. Nh5 {[%clk 0:01:54]}  Bf8 {[%clk 0:02:21]} 21. Bxh6 {[%clk 0:01:45]}  gxh6 {[%clk 0:02:05]} 22. Nf6+ {[%clk 0:01:43]}  Kh8 {[%clk 0:02:05]} 23. Ng5 {[%clk 0:01:08]}  Bg6 {[%clk 0:02:03]} 24. Bd3 {[%clk 0:00:35]}  Qe7 {[%clk 0:01:54]} 25. Bxg6 {[%clk 0:00:24]}  fxg6 {[%clk 0:01:51]} 26. Nh3 {[%clk 0:00:20]}  Qf7 {[%clk 0:01:44]} 27. Rc3 {[%clk 0:00:18]}  Nc4 {[%clk 0:01:41]} 28. Qe2 {[%clk 0:00:11]}  Nxd4 {[%clk 0:01:39]} 29. Qg4 {[%clk 0:00:11]}  Nf5 {[%clk 0:01:39]} 30. Rf3 {[%clk 0:00:09]}  Nxe5 {[%clk 0:01:37]} 31. Qh4 {[%clk 0:00:07]}  Nxf3+ {[%clk 0:01:36]} 0-1


[Site "https://www.chess.com"]

[Event "Titled Tuesday Blitz January 03 Early 2023"]
[White "Saravana, Krishnan P."]
[Black "De Arruda, Leandro Formes"]
[WhiteFideId "5018382"]
[BlackFideId "22722009"]
[WhiteElo "2284"]
[BlackElo "1980"]
[Result "1-0"]
[Round "04"]
[TimeControl "180+2"]
[Date "2023.01.03"]
[WhiteClock "0:01:05"]
[BlackClock "0:00:02"]

1. Nf3 {[%clk 0:02:52]}  e6 {[%clk 0:03:00]} 2. g3 {[%clk 0:02:52]}  d5 {[%clk 0:03:01]} 3. Bg2 {[%clk 0:02:52]}  Nf6 {[%clk 0:03:02]} 4. d3 {[%clk 0:02:53]}  Be7 {[%clk 0:03:03]} 5. O-O {[%clk 0:02:53]}  O-O {[%clk 0:03:04]} 6. Nbd2 {[%clk 0:02:53]}  b6 {[%clk 0:03:02]} 7. e4 {[%clk 0:02:53]}  Bb7 {[%clk 0:03:03]} 8. e5 {[%clk 0:02:53]}  Nfd7 {[%clk 0:03:03]} 9. Re1 {[%clk 0:02:53]}  c5 {[%clk 0:03:03]} 10. Nf1 {[%clk 0:02:54]}  Nc6 {[%clk 0:03:03]} 11. h4 {[%clk 0:02:50]}  Rc8 {[%clk 0:02:58]} 12. Bf4 {[%clk 0:02:49]}  c4 {[%clk 0:02:37]} 13. d4 {[%clk 0:02:34]}  Na5 {[%clk 0:02:29]} 14. N1h2 {[%clk 0:02:33]}  b5 {[%clk 0:02:26]} 15. Ng5 {[%clk 0:02:25]}  b4 {[%clk 0:02:24]} 16. Qh5 {[%clk 0:02:23]}  h6 {[%clk 0:02:22]} 17. Ng4 {[%clk 0:02:09]}  hxg5 {[%clk 0:02:10]} 18. hxg5 {[%clk 0:02:07]}  Re8 {[%clk 0:01:59]} 19. Bf3 {[%clk 0:02:03]}  Nf8 {[%clk 0:01:43]} 20. Kg2 {[%clk 0:02:02]}  Ng6 {[%clk 0:01:04]} 21. Rh1 {[%clk 0:02:00]}  Bc5 {[%clk 0:00:59]} 22. dxc5 {[%clk 0:01:48]}  Rxc5 {[%clk 0:00:35]} 23. Nf6+ {[%clk 0:01:45]}  Kf8 {[%clk 0:00:28]} 24. c3 {[%clk 0:01:23]}  bxc3 {[%clk 0:00:19]} 25. bxc3 {[%clk 0:01:22]}  Ke7 {[%clk 0:00:14]} 26. Nxe8 {[%clk 0:01:20]}  Qxe8 {[%clk 0:00:15]} 27. Rab1 {[%clk 0:01:17]}  Rc8 {[%clk 0:00:12]} 28. Rb4 {[%clk 0:01:14]}  Bc6 {[%clk 0:00:09]} 29. Be3 {[%clk 0:01:13]}  d4 {[%clk 0:00:08]} 30. Bxd4 {[%clk 0:01:11]}  Bxf3+ {[%clk 0:00:08]} 31. Qxf3 {[%clk 0:01:10]}  Nc6 {[%clk 0:00:08]} 32. Rb7+ {[%clk 0:01:09]}  Kf8 {[%clk 0:00:08]} 33. Bc5+ {[%clk 0:01:08]}  Nce7 {[%clk 0:00:03]} 34. Bxe7+ {[%clk 0:01:07]}  Nxe7 {[%clk 0:00:02]} 35. Rh8+ {[%clk 0:01:05]} 1-0


[Site "https://www.chess.com"]

[Event "Titled Tuesday Blitz January 03 Early 2023"]
[White "monkins"]
[Black "Garv Gaur"]
[BlackFideId "45030839"]
[WhiteElo "2242"]
[BlackElo "2006"]
[Result "0-1"]
[Round "04"]
[TimeControl "180+2"]
[Date "2023.01.03"]
[WhiteClock "0:00:02"]
[BlackClock "0:00:33"]

1. Nf3 {[%clk 0:03:00]}  Nf6 {[%clk 0:02:59]} 2. c4 {[%clk 0:03:01]}  e6 {[%clk 0:02:59]} 3. g3 {[%clk 0:03:01]}  d5 {[%clk 0:02:59]} 4. Bg2 {[%clk 0:03:02]}  b6 {[%clk 0:02:57]} 5. O-O {[%clk 0:03:00]}  Bb7 {[%clk 0:02:58]} 6. d3 {[%clk 0:03:00]}  Nbd7 {[%clk 0:02:58]} 7. Nbd2 {[%clk 0:03:01]}  Be7 {[%clk 0:02:58]} 8. Rb1 {[%clk 0:03:00]}  O-O {[%clk 0:02:58]} 9. b4 {[%clk 0:03:00]}  c5 {[%clk 0:02:58]} 10. b5 {[%clk 0:03:00]}  d4 {[%clk 0:02:57]} 11. a4 {[%clk 0:02:59]}  e5 {[%clk 0:02:57]} 12. a5 {[%clk 0:02:59]}  bxa5 {[%clk 0:02:49]} 13. Ra1 {[%clk 0:02:57]}  e4 {[%clk 0:02:45]} 14. Ng5 {[%clk 0:02:54]}  Qc7 {[%clk 0:02:18]} 15. Ngxe4 {[%clk 0:02:51]}  a6 {[%clk 0:02:09]} 16. Nxf6+ {[%clk 0:02:24]}  Nxf6 {[%clk 0:02:09]} 17. Qa4 {[%clk 0:02:03]}  Bxg2 {[%clk 0:02:02]} 18. Kxg2 {[%clk 0:02:04]}  axb5 {[%clk 0:02:02]} 19. Qxb5 {[%clk 0:01:51]}  Rfb8 {[%clk 0:02:01]} 20. Qa4 {[%clk 0:01:51]}  Rb4 {[%clk 0:02:01]} 21. Qa2 {[%clk 0:01:39]}  Rb7 {[%clk 0:01:46]} 22. Ba3 {[%clk 0:01:24]}  a4 {[%clk 0:01:38]} 23. Rfb1 {[%clk 0:01:21]}  Qc6+ {[%clk 0:01:34]} 24. Kg1 {[%clk 0:01:16]}  Rb4 {[%clk 0:01:25]} 25. Rb2 {[%clk 0:00:53]}  Rxb2 {[%clk 0:01:06]} 26. Qxb2 {[%clk 0:00:49]}  Bd6 {[%clk 0:01:05]} 27. Qb5 {[%clk 0:00:43]}  Qc7 {[%clk 0:00:52]} 28. Bc1 {[%clk 0:00:19]}  Ra5 {[%clk 0:00:46]} 29. Qb2 {[%clk 0:00:09]}  h5 {[%clk 0:00:45]} 30. Nf3 {[%clk 0:00:04]}  Ra8 {[%clk 0:00:37]} 31. Bg5 {[%clk 0:00:02]}  Nd7 {[%clk 0:00:33]} 0-1


[Site "https://www.chess.com"]

[Event "Titled Tuesday Blitz January 03 Early 2023"]
[White "Barbashin, Igor"]
[Black "Redzisz, Michal"]
[WhiteFideId "4155718"]
[BlackFideId "21816107"]
[WhiteElo "2169"]
[BlackElo "2269"]
[Result "0-1"]
[Round "04"]
[TimeControl "180+2"]
[Date "2023.01.03"]
[WhiteClock "0:00:01"]
[BlackClock "0:00:06"]

1. d4 {[%clk 0:03:00]}  Nf6 {[%clk 0:02:59]} 2. c4 {[%clk 0:03:00]}  g6 {[%clk 0:03:00]} 3. Nc3 {[%clk 0:03:00]}  d5 {[%clk 0:03:00]} 4. Nf3 {[%clk 0:02:59]}  Bg7 {[%clk 0:03:00]} 5. e3 {[%clk 0:02:59]}  O-O {[%clk 0:02:59]} 6. Be2 {[%clk 0:02:59]}  dxc4 {[%clk 0:03:00]} 7. Bxc4 {[%clk 0:02:58]}  c5 {[%clk 0:03:00]} 8. O-O {[%clk 0:02:57]}  Nc6 {[%clk 0:03:01]} 9. dxc5 {[%clk 0:02:37]}  Qa5 {[%clk 0:03:00]} 10. e4 {[%clk 0:02:35]}  Qxc5 {[%clk 0:02:56]} 11. Qe2 {[%clk 0:02:34]}  Bg4 {[%clk 0:02:56]} 12. Be3 {[%clk 0:02:28]}  Qa5 {[%clk 0:02:47]} 13. a3 {[%clk 0:02:23]}  Ne5 {[%clk 0:02:29]} 14. Rac1 {[%clk 0:02:06]}  Rac8 {[%clk 0:01:44]} 15. Nd5 {[%clk 0:01:52]}  Nxd5 {[%clk 0:01:38]} 16. Bxd5 {[%clk 0:01:52]}  Nxf3+ {[%clk 0:01:14]} 17. gxf3 {[%clk 0:01:51]}  Bh3 {[%clk 0:01:15]} 18. Rfd1 {[%clk 0:01:39]}  Rxc1 {[%clk 0:00:49]} 19. Rxc1 {[%clk 0:01:36]}  b6 {[%clk 0:00:36]} 20. Bd2 {[%clk 0:01:24]}  Qa4 {[%clk 0:00:36]} 21. Bb4 {[%clk 0:01:21]}  Qd7 {[%clk 0:00:30]} 22. f4 {[%clk 0:01:08]}  Bxb2 {[%clk 0:00:22]} 23. Rd1 {[%clk 0:00:37]}  e5 {[%clk 0:00:21]} 24. Rd3 {[%clk 0:00:25]}  Bd4 {[%clk 0:00:13]} 25. fxe5 {[%clk 0:00:22]}  Bxe5 {[%clk 0:00:12]} 26. Bc3 {[%clk 0:00:15]}  Bxc3 {[%clk 0:00:11]} 27. Rxc3 {[%clk 0:00:14]}  Be6 {[%clk 0:00:11]} 28. Rd3 {[%clk 0:00:13]}  Rd8 {[%clk 0:00:09]} 29. Qf3 {[%clk 0:00:08]}  Bxd5 {[%clk 0:00:04]} 30. Rxd5 {[%clk 0:00:07]}  Qe7 {[%clk 0:00:03]} 31. Rxd8+ {[%clk 0:00:05]}  Qxd8 {[%clk 0:00:04]} 32. e5 {[%clk 0:00:05]}  Qe7 {[%clk 0:00:05]} 33. Qe4 {[%clk 0:00:04]}  Kg7 {[%clk 0:00:05]} 34. f4 {[%clk 0:00:04]}  Qxa3 {[%clk 0:00:05]} 35. Kg2 {[%clk 0:00:05]}  Qb2+ {[%clk 0:00:06]} 36. Kg3 {[%clk 0:00:05]}  Qc3+ {[%clk 0:00:06]} 37. Kg4 {[%clk 0:00:05]}  Qc7 {[%clk 0:00:07]} 38. Qd4 {[%clk 0:00:04]}  h5+ {[%clk 0:00:06]} 39. Kg3 {[%clk 0:00:03]}  Qc5 {[%clk 0:00:07]} 40. Qd3 {[%clk 0:00:01]}  a5 {[%clk 0:00:06]} 0-1


[Site "https://www.chess.com"]

[Event "Titled Tuesday Blitz January 03 Early 2023"]
[White "Winkels, Marcel"]
[Black "Petrova, Irina"]
[WhiteFideId "1003887"]
[BlackFideId "14124122"]
[WhiteElo "1960"]
[BlackElo "2108"]
[Result "0-1"]
[Round "04"]
[TimeControl "180+2"]
[Date "2023.01.03"]
[WhiteClock "0:00:03"]
[BlackClock "0:01:04"]

1. d4 {[%clk 0:03:00]}  d6 {[%clk 0:03:00]} 2. Nc3 {[%clk 0:02:58]}  g6 {[%clk 0:03:00]} 3. Bf4 {[%clk 0:02:56]}  Bg7 {[%clk 0:03:01]} 4. e3 {[%clk 0:02:57]}  Nd7 {[%clk 0:03:01]} 5. h4 {[%clk 0:02:57]}  h5 {[%clk 0:03:01]} 6. Nf3 {[%clk 0:02:56]}  e5 {[%clk 0:02:58]} 7. dxe5 {[%clk 0:02:49]}  dxe5 {[%clk 0:02:59]} 8. Bg5 {[%clk 0:02:48]}  Ngf6 {[%clk 0:02:57]} 9. Qd2 {[%clk 0:02:39]}  O-O {[%clk 0:02:56]} 10. O-O-O {[%clk 0:02:38]}  c6 {[%clk 0:02:56]} 11. Qd6 {[%clk 0:02:20]}  Qe8 {[%clk 0:02:46]} 12. Bc4 {[%clk 0:02:12]}  Ng4 {[%clk 0:02:36]} 13. Be7 {[%clk 0:02:01]}  Nxf2 {[%clk 0:02:31]} 14. Bxf8 {[%clk 0:01:54]}  Nxf8 {[%clk 0:02:32]} 15. Ng5 {[%clk 0:01:48]}  Be6 {[%clk 0:02:29]} 16. Bxe6 {[%clk 0:01:38]}  fxe6 {[%clk 0:02:28]} 17. Nce4 {[%clk 0:01:23]}  Nxh1 {[%clk 0:02:26]} 18. Rxh1 {[%clk 0:01:21]}  Rd8 {[%clk 0:02:26]} 19. Qb4 {[%clk 0:01:11]}  Qd7 {[%clk 0:02:17]} 20. Rf1 {[%clk 0:01:05]}  Nh7 {[%clk 0:02:12]} 21. Nxh7 {[%clk 0:01:00]}  Kxh7 {[%clk 0:02:11]} 22. Ng5+ {[%clk 0:01:01]}  Kg8 {[%clk 0:02:09]} 23. a3 {[%clk 0:00:49]}  Bh6 {[%clk 0:02:09]} 24. Qe4 {[%clk 0:00:44]}  Bxg5 {[%clk 0:02:01]} 25. Qxg6+ {[%clk 0:00:43]}  Qg7 {[%clk 0:02:01]} 26. Qxg7+ {[%clk 0:00:42]}  Kxg7 {[%clk 0:02:01]} 27. hxg5 {[%clk 0:00:43]}  Rf8 {[%clk 0:01:37]} 28. Rxf8 {[%clk 0:00:30]}  Kxf8 {[%clk 0:01:38]} 29. Kd2 {[%clk 0:00:30]}  Kf7 {[%clk 0:01:39]} 30. Kd3 {[%clk 0:00:30]}  Kg6 {[%clk 0:01:38]} 31. Ke4 {[%clk 0:00:31]}  Kxg5 {[%clk 0:01:38]} 32. Kxe5 {[%clk 0:00:31]}  h4 {[%clk 0:01:37]} 33. Kxe6 {[%clk 0:00:30]}  Kg4 {[%clk 0:01:37]} 34. e4 {[%clk 0:00:31]}  Kg3 {[%clk 0:01:38]} 35. e5 {[%clk 0:00:31]}  Kxg2 {[%clk 0:01:38]} 36. Kd7 {[%clk 0:00:30]}  h3 {[%clk 0:01:39]} 37. e6 {[%clk 0:00:30]}  h2 {[%clk 0:01:40]} 38. e7 {[%clk 0:00:31]}  h1=Q {[%clk 0:01:41]} 39. e8=Q {[%clk 0:00:32]}  Qd1+ {[%clk 0:01:38]} 40. Kc7 {[%clk 0:00:30]}  Qxc2 {[%clk 0:01:37]} 41. Qg8+ {[%clk 0:00:25]}  Kf3 {[%clk 0:01:36]} 42. b3 {[%clk 0:00:24]}  b5 {[%clk 0:01:28]} 43. Qf7+ {[%clk 0:00:20]}  Ke3 {[%clk 0:01:28]} 44. Qe6+ {[%clk 0:00:19]}  Kd2 {[%clk 0:01:26]} 45. Qd5+ {[%clk 0:00:18]}  Kc1 {[%clk 0:01:19]} 46. Qe6 {[%clk 0:00:13]}  Kb2 {[%clk 0:01:18]} 47. b4 {[%clk 0:00:11]}  Kxa3 {[%clk 0:01:15]} 48. Qd6 {[%clk 0:00:09]}  Qc4 {[%clk 0:01:11]} 49. Kb7 {[%clk 0:00:05]}  Qxb4 {[%clk 0:01:04]} 50. Qd3+ {[%clk 0:00:03]}  Qb3 {[%clk 0:01:04]} 0-1


[Site "https://www.chess.com"]

[Event "Titled Tuesday Blitz January 03 Early 2023"]
[White "Necula, Iulian"]
[Black "Vifleemskaia, Svetlana"]
[WhiteFideId "1232380"]
[BlackFideId "4129490"]
[WhiteElo "1851"]
[BlackElo "1971"]
[Result "0-1"]
[Round "04"]
[TimeControl "180+2"]
[Date "2023.01.03"]
[WhiteClock "0:00:05"]
[BlackClock "0:00:21"]

1. d4 {[%clk 0:03:00]}  Nf6 {[%clk 0:02:46]} 2. Nc3 {[%clk 0:03:00]}  d5 {[%clk 0:02:46]} 3. Bf4 {[%clk 0:03:00]}  a6 {[%clk 0:02:45]} 4. e3 {[%clk 0:02:59]}  c5 {[%clk 0:02:42]} 5. dxc5 {[%clk 0:02:56]}  Qa5 {[%clk 0:02:40]} 6. Nf3 {[%clk 0:02:55]}  Qxc5 {[%clk 0:02:38]} 7. Bd3 {[%clk 0:02:53]}  Bg4 {[%clk 0:02:34]} 8. h3 {[%clk 0:02:50]}  Bh5 {[%clk 0:02:33]} 9. g4 {[%clk 0:02:49]}  Bg6 {[%clk 0:02:32]} 10. Bxg6 {[%clk 0:02:35]}  hxg6 {[%clk 0:02:31]} 11. g5 {[%clk 0:02:25]}  Nh5 {[%clk 0:02:16]} 12. Be5 {[%clk 0:02:24]}  e6 {[%clk 0:02:13]} 13. Bd4 {[%clk 0:02:24]}  Qc7 {[%clk 0:02:05]} 14. Qd2 {[%clk 0:02:18]}  b5 {[%clk 0:02:04]} 15. a3 {[%clk 0:02:16]}  Nc6 {[%clk 0:02:00]} 16. O-O-O {[%clk 0:01:54]}  Bd6 {[%clk 0:01:59]} 17. e4 {[%clk 0:01:48]}  Nxd4 {[%clk 0:01:28]} 18. Qxd4 {[%clk 0:01:45]}  Bf4+ {[%clk 0:01:08]} 19. Kb1 {[%clk 0:01:44]}  dxe4 {[%clk 0:01:05]} 20. Nxe4 {[%clk 0:01:38]}  O-O {[%clk 0:01:03]} 21. c3 {[%clk 0:01:25]}  Rfd8 {[%clk 0:01:02]} 22. Qc5 {[%clk 0:01:20]}  Qb7 {[%clk 0:00:53]} 23. Nfd2 {[%clk 0:00:58]}  Bxd2 {[%clk 0:00:48]} 24. Nd6 {[%clk 0:00:50]}  Qd5 {[%clk 0:00:44]} 25. Qxd5 {[%clk 0:00:40]}  exd5 {[%clk 0:00:43]} 26. Nb7 {[%clk 0:00:26]}  Rd7 {[%clk 0:00:41]} 27. Nc5 {[%clk 0:00:24]}  Rc7 {[%clk 0:00:39]} 28. Nxa6 {[%clk 0:00:21]}  Rxa6 {[%clk 0:00:37]} 29. Rxd2 {[%clk 0:00:22]}  Rd6 {[%clk 0:00:35]} 30. Rhd1 {[%clk 0:00:22]}  Rcd7 {[%clk 0:00:35]} 31. b3 {[%clk 0:00:21]}  Nf4 {[%clk 0:00:35]} 32. h4 {[%clk 0:00:20]}  Ne6 {[%clk 0:00:33]} 33. c4 {[%clk 0:00:13]}  bxc4 {[%clk 0:00:33]} 34. bxc4 {[%clk 0:00:14]}  d4 {[%clk 0:00:33]} 35. Kc2 {[%clk 0:00:12]}  Ra7 {[%clk 0:00:27]} 36. Kb3 {[%clk 0:00:11]}  Rb6+ {[%clk 0:00:27]} 37. Ka2 {[%clk 0:00:11]}  Rba6 {[%clk 0:00:24]} 38. c5 {[%clk 0:00:10]}  Rxa3+ {[%clk 0:00:24]} 39. Kb2 {[%clk 0:00:10]}  Rc3 {[%clk 0:00:22]} 40. c6 {[%clk 0:00:09]}  Rxc6 {[%clk 0:00:21]} 41. Ra1 {[%clk 0:00:07]}  Rb7+ {[%clk 0:00:20]} 42. Ka2 {[%clk 0:00:05]}  Ra6# {[%clk 0:00:21]} 0-1


[Site "https://www.chess.com"]

[Event "Titled Tuesday Blitz January 03 Early 2023"]
[White "Slovineanu"]
[Black "Tharushi, T H D Niklesha"]
[BlackFideId "9918264"]
[WhiteElo "2294"]
[BlackElo "1570"]
[Result "1-0"]
[Round "04"]
[TimeControl "180+2"]
[Date "2023.01.03"]
[WhiteClock "0:00:16"]
[BlackClock "0:00:34"]

1. e4 {[%clk 0:03:00]}  c6 {[%clk 0:02:59]} 2. d4 {[%clk 0:02:59]}  d5 {[%clk 0:02:59]} 3. e5 {[%clk 0:02:58]}  Bf5 {[%clk 0:02:58]} 4. Nc3 {[%clk 0:02:57]}  e6 {[%clk 0:02:58]} 5. g4 {[%clk 0:02:57]}  Bg6 {[%clk 0:02:56]} 6. Nge2 {[%clk 0:02:57]}  h5 {[%clk 0:02:56]} 7. Nf4 {[%clk 0:02:57]}  Qh4 {[%clk 0:02:41]} 8. Nxg6 {[%clk 0:02:52]}  fxg6 {[%clk 0:02:42]} 9. Bd3 {[%clk 0:02:48]}  Qxg4 {[%clk 0:02:20]} 10. Qxg4 {[%clk 0:02:46]}  hxg4 {[%clk 0:02:21]} 11. Bxg6+ {[%clk 0:02:46]}  Kd7 {[%clk 0:02:22]} 12. Bf4 {[%clk 0:02:38]}  Ne7 {[%clk 0:02:19]} 13. Bd3 {[%clk 0:02:35]}  Nf5 {[%clk 0:02:15]} 14. Ne2 {[%clk 0:02:24]}  Be7 {[%clk 0:02:13]} 15. O-O-O {[%clk 0:02:19]}  g5 {[%clk 0:02:11]} 16. Bd2 {[%clk 0:02:00]}  a5 {[%clk 0:01:47]} 17. Rdg1 {[%clk 0:01:59]}  Rh4 {[%clk 0:01:46]} 18. c3 {[%clk 0:01:30]}  b5 {[%clk 0:01:36]} 19. Ng3 {[%clk 0:01:26]}  Nxg3 {[%clk 0:01:29]} 20. hxg3 {[%clk 0:01:23]}  Rh3 {[%clk 0:01:28]} 21. Be2 {[%clk 0:01:19]}  Na6 {[%clk 0:01:16]} 22. Bxg4 {[%clk 0:01:18]}  Rxh1 {[%clk 0:01:14]} 23. Rxh1 {[%clk 0:01:19]}  Rf8 {[%clk 0:01:13]} 24. f3 {[%clk 0:01:17]}  c5 {[%clk 0:01:04]} 25. Rh7 {[%clk 0:01:14]}  b4 {[%clk 0:00:59]} 26. Bxg5 {[%clk 0:01:12]}  Re8 {[%clk 0:00:57]} 27. Bxe6+ {[%clk 0:00:40]}  Kxe6 {[%clk 0:00:52]} 28. Bxe7 {[%clk 0:00:40]}  cxd4 {[%clk 0:00:41]} 29. cxd4 {[%clk 0:00:37]}  Rc8+ {[%clk 0:00:37]} 30. Kd2 {[%clk 0:00:32]}  Rc4 {[%clk 0:00:36]} 31. Kd3 {[%clk 0:00:18]}  Nc7 {[%clk 0:00:36]} 32. Bd6 {[%clk 0:00:17]}  Nb5 {[%clk 0:00:36]} 33. g4 {[%clk 0:00:17]}  Rxd4+ {[%clk 0:00:35]} 34. Ke3 {[%clk 0:00:16]}  Rc4 {[%clk 0:00:34]} 35. Re7# {[%clk 0:00:16]} 1-0


[Site "https://www.chess.com"]